[Event "*** Titled Tuesday Blitz"]
[Site "Chess.com"]
[Date "2020.10.20"]
[Round "3"]
[White "Durarbayli"]
[Black "korbul"]
[Result "0-1"]
[WhiteElo "2777"]
[BlackElo "2536"]
[TimeControl "180+1"]
[EndTime "10:28:18 PDT"]
[Termination "korbul won by checkmate"]

1. e4 {[%clk 0:03:00.9]} 1... c5 {[%clk 0:02:59.8]} 2. b3 {[%clk 0:03:01]} 2...
b6 {[%clk 0:02:59]} 3. c4 {[%clk 0:02:53.1]} 3... Bb7 {[%clk 0:02:58.8]} 4. Nc3
{[%clk 0:02:53.7]} 4... Nc6 {[%clk 0:02:57.7]} 5. Nf3 {[%clk 0:02:53]} 5... e5
{[%clk 0:02:56.9]} 6. g3 {[%clk 0:02:52.5]} 6... d6 {[%clk 0:02:56.6]} 7. Bg2
{[%clk 0:02:51.8]} 7... g6 {[%clk 0:02:56.8]} 8. O-O {[%clk 0:02:51.2]} 8... Bg7
{[%clk 0:02:56.9]} 9. Ne1 {[%clk 0:02:42.9]} 9... Nge7 {[%clk 0:02:55.1]} 10. f4
{[%clk 0:02:23.1]} 10... exf4 {[%clk 0:02:54.6]} 11. gxf4 {[%clk 0:02:23.5]}
11... f5 {[%clk 0:02:54.1]} 12. Rb1 {[%clk 0:02:08.9]} 12... O-O {[%clk
0:02:53.3]} 13. Bb2 {[%clk 0:02:05.6]} 13... Nd4 {[%clk 0:02:52.7]} 14. d3
{[%clk 0:02:00.1]} 14... Qd7 {[%clk 0:02:52.2]} 15. Bh3 {[%clk 0:01:54.2]} 15...
Rae8 {[%clk 0:02:49.1]} 16. Ng2 {[%clk 0:01:50.4]} 16... Qc7 {[%clk 0:02:43.2]}
17. Qd2 {[%clk 0:01:41.6]} 17... a6 {[%clk 0:02:41.9]} 18. Rbe1 {[%clk
0:01:28.4]} 18... b5 {[%clk 0:02:41.8]} 19. Ne3 {[%clk 0:01:16.8]} 19... fxe4
{[%clk 0:02:35.8]} 20. dxe4 {[%clk 0:01:12.6]} 20... b4 {[%clk 0:02:30.9]} 21.
Ncd5 {[%clk 0:01:09.8]} 21... Nxd5 {[%clk 0:02:29.2]} 22. Nxd5 {[%clk
0:01:05.7]} 22... Bxd5 {[%clk 0:02:28.4]} 23. cxd5 {[%clk 0:01:06.1]} 23... Kh8
{[%clk 0:02:23]} 24. Kh1 {[%clk 0:01:03.9]} 24... a5 {[%clk 0:02:21.4]} 25. Qd3
{[%clk 0:00:55.4]} 25... a4 {[%clk 0:02:14.5]} 26. Bxd4 {[%clk 0:00:54.9]} 26...
Bxd4 {[%clk 0:02:11.1]} 27. Be6 {[%clk 0:00:52.1]} 27... Ra8 {[%clk 0:02:06.8]}
28. e5 {[%clk 0:00:41.2]} 28... axb3 {[%clk 0:02:00]} 29. axb3 {[%clk
0:00:40.7]} 29... Ra2 {[%clk 0:01:51.6]} 30. Rf3 {[%clk 0:00:31.7]} 30... Rfa8
{[%clk 0:01:33]} 31. Qe4 {[%clk 0:00:14.6]} 31... Ra1 {[%clk 0:01:02.8]} 32.
Rxa1 {[%clk 0:00:13.4]} 32... Rxa1+ {[%clk 0:01:01.6]} 33. Kg2 {[%clk
0:00:14.3]} 33... Rg1+ {[%clk 0:00:52.7]} 34. Kh3 {[%clk 0:00:14.3]} 34... Qg7
{[%clk 0:00:50.7]} 35. Rg3 {[%clk 0:00:09.1]} 35... Qh6+ {[%clk 0:00:50]} 36.
Kg4 {[%clk 0:00:08.1]} 36... Qh5# {[%clk 0:00:50.2]} 0-1

[Event "*** Titled Tuesday Blitz"]
[Site "Chess.com"]
[Date "2020.10.20"]
[Round "3"]
[White "Gloomy_Wanderer"]
[Black "Firouzja2003"]
[Result "0-1"]
[WhiteElo "2715"]
[BlackElo "3007"]
[TimeControl "180+1"]
[EndTime "10:28:19 PDT"]
[Termination "Firouzja2003 won by resignation"]

1. d4 {[%clk 0:03:00.9]} 1... Nf6 {[%clk 0:02:58.9]} 2. Nf3 {[%clk 0:03:00.5]}
2... e6 {[%clk 0:02:59.4]} 3. c4 {[%clk 0:03:00.4]} 3... d5 {[%clk 0:03:00.1]}
4. g3 {[%clk 0:03:00.5]} 4... Be7 {[%clk 0:03:00.7]} 5. Bg2 {[%clk 0:03:00.6]}
5... O-O {[%clk 0:03:01.5]} 6. O-O {[%clk 0:03:01.4]} 6... Nbd7 {[%clk
0:03:02.3]} 7. Qc2 {[%clk 0:03:01]} 7... c6 {[%clk 0:03:02.8]} 8. Nbd2 {[%clk
0:03:01.3]} 8... b6 {[%clk 0:03:03.3]} 9. e4 {[%clk 0:03:01.7]} 9... Ba6 {[%clk
0:03:03.7]} 10. b3 {[%clk 0:03:01.1]} 10... Rc8 {[%clk 0:03:02.4]} 11. Bb2
{[%clk 0:03:01.2]} 11... dxe4 {[%clk 0:02:56.6]} 12. Nxe4 {[%clk 0:03:01]} 12...
Nxe4 {[%clk 0:02:57.4]} 13. Qxe4 {[%clk 0:03:01.7]} 13... b5 {[%clk 0:02:58.1]}
14. c5 {[%clk 0:02:36.1]} 14... b4 {[%clk 0:02:57.5]} 15. Rfe1 {[%clk
0:02:36.1]} 15... Bb5 {[%clk 0:02:57.7]} 16. a4 {[%clk 0:02:26.4]} 16... bxa3
{[%clk 0:02:56.5]} 17. Rxa3 {[%clk 0:02:25.8]} 17... a6 {[%clk 0:02:56]} 18. Qc2
{[%clk 0:02:21.4]} 18... Qc7 {[%clk 0:02:55.6]} 19. Nd2 {[%clk 0:02:12.3]} 19...
Rfd8 {[%clk 0:02:55.7]} 20. Nc4 {[%clk 0:02:12.1]} 20... Nf6 {[%clk 0:02:56]}
21. Nb6 {[%clk 0:02:08.9]} 21... Rb8 {[%clk 0:02:54.9]} 22. Raa1 {[%clk
0:01:54.9]} 22... h6 {[%clk 0:02:54.7]} 23. Rad1 {[%clk 0:01:53.1]} 23... Nd5
{[%clk 0:02:53.7]} 24. Nxd5 {[%clk 0:01:48.5]} 24... cxd5 {[%clk 0:02:53.9]} 25.
Bc3 {[%clk 0:01:43.6]} 25... Bc6 {[%clk 0:02:52.9]} 26. Ra1 {[%clk 0:01:42.5]}
26... Qb7 {[%clk 0:02:52.7]} 27. b4 {[%clk 0:01:39.8]} 27... Bf6 {[%clk
0:02:53]} 28. f4 {[%clk 0:01:33.6]} 28... Ra8 {[%clk 0:02:50.8]} 29. Bf1 {[%clk
0:01:32.3]} 29... Bb5 {[%clk 0:02:38.7]} 30. Ra5 {[%clk 0:01:30.7]} 30... Bxf1
{[%clk 0:02:38.6]} 31. Rxf1 {[%clk 0:01:30.3]} 31... Rdb8 {[%clk 0:02:33.9]} 32.
Qd3 {[%clk 0:01:24.4]} 32... Bd8 {[%clk 0:02:32.7]} 33. Ra3 {[%clk 0:01:16.3]}
33... Qc6 {[%clk 0:02:32.3]} 34. Rfa1 {[%clk 0:01:15.1]} 34... Rb5 {[%clk
0:02:32.6]} 35. f5 {[%clk 0:01:06]} 35... exf5 {[%clk 0:02:25.4]} 36. Qxf5
{[%clk 0:01:06.9]} 36... Bf6 {[%clk 0:02:25.1]} 37. Re1 {[%clk 0:00:59.4]} 37...
Rbb8 {[%clk 0:02:24.7]} 38. Qd3 {[%clk 0:00:54.1]} 38... Re8 {[%clk 0:02:22.5]}
39. Rxe8+ {[%clk 0:00:46.9]} 39... Qxe8 {[%clk 0:02:23.4]} 40. Rxa6 {[%clk
0:00:33.4]} 40... Rxa6 {[%clk 0:02:09.4]} 41. Qxa6 {[%clk 0:00:34.3]} 41... Qe3+
{[%clk 0:02:09.1]} 42. Kg2 {[%clk 0:00:34.3]} 42... Qe4+ {[%clk 0:02:09.1]} 43.
Kf2 {[%clk 0:00:22.9]} 43... Qc2+ {[%clk 0:02:07.3]} 44. Kg1 {[%clk 0:00:22.7]}
44... Bg5 {[%clk 0:02:06.9]} 45. Be1 {[%clk 0:00:10.2]} 45... Be3+ {[%clk
0:01:58.2]} 46. Kf1 {[%clk 0:00:10.5]} 46... Qe4 {[%clk 0:01:54.2]} 47. Ke2
{[%clk 0:00:02.3]} 47... Bxd4+ {[%clk 0:01:50.9]} 48. Kd1 {[%clk 0:00:02.7]}
48... Qb1+ {[%clk 0:01:47.9]} 49. Ke2 {[%clk 0:00:02.8]} 49... Qc2+ {[%clk
0:01:47.4]} 50. Bd2 {[%clk 0:00:03.3]} 50... Qe4+ {[%clk 0:01:45.3]} 51. Kd1
{[%clk 0:00:02.9]} 51... Be5 {[%clk 0:01:42.6]} 52. Qa3 {[%clk 0:00:01.8]} 52...
d4 {[%clk 0:01:41.2]} 53. Kc1 {[%clk 0:00:02.1]} 53... d3 {[%clk 0:01:40.5]} 54.
b5 {[%clk 0:00:02.6]} 54... Qh1+ {[%clk 0:01:39.7]} 0-1

[Event "*** Titled Tuesday Blitz"]
[Site "Chess.com"]
[Date "2020.10.20"]
[Round "3"]
[White "DrVitman"]
[Black "Anton_Demchenko"]
[Result "1-0"]
[WhiteElo "2462"]
[BlackElo "2821"]
[TimeControl "180+1"]
[EndTime "10:28:19 PDT"]
[Termination "DrVitman won on time"]

1. e4 {[%clk 0:03:00.9]} 1... c5 {[%clk 0:02:59.4]} 2. Nc3 {[%clk 0:03:01.1]}
2... d6 {[%clk 0:02:59.4]} 3. d4 {[%clk 0:02:58.2]} 3... cxd4 {[%clk 0:03:00.2]}
4. Qxd4 {[%clk 0:02:59]} 4... a6 {[%clk 0:02:59.5]} 5. b3 {[%clk 0:02:57]} 5...
e6 {[%clk 0:02:59.8]} 6. Bb2 {[%clk 0:02:56.1]} 6... b5 {[%clk 0:02:59.1]} 7.
O-O-O {[%clk 0:02:53.1]} 7... Bb7 {[%clk 0:02:59.6]} 8. f4 {[%clk 0:02:44.5]}
8... Nd7 {[%clk 0:02:56.6]} 9. Nf3 {[%clk 0:02:44.4]} 9... Qb6 {[%clk
0:02:56.8]} 10. Qd2 {[%clk 0:02:37.9]} 10... Rc8 {[%clk 0:02:54.5]} 11. Bd3
{[%clk 0:02:34.2]} 11... Nc5 {[%clk 0:02:51.4]} 12. Rhe1 {[%clk 0:02:30.8]}
12... b4 {[%clk 0:02:49.3]} 13. Nd5 {[%clk 0:02:27.2]} 13... exd5 {[%clk
0:02:45.8]} 14. exd5+ {[%clk 0:02:28.1]} 14... Ne7 {[%clk 0:02:44.4]} 15. Bc4
{[%clk 0:02:20.4]} 15... a5 {[%clk 0:02:27.8]} 16. f5 {[%clk 0:02:16.5]} 16...
f6 {[%clk 0:02:24.4]} 17. Nd4 {[%clk 0:02:14.7]} 17... Ba6 {[%clk 0:02:23]} 18.
g4 {[%clk 0:01:39]} 18... Bxc4 {[%clk 0:02:16.4]} 19. bxc4 {[%clk 0:01:39.9]}
19... Nd7 {[%clk 0:02:17.1]} 20. Ne6 {[%clk 0:01:35.8]} 20... Rxc4 {[%clk
0:02:07.7]} 21. Qe2 {[%clk 0:01:32]} 21... Rc7 {[%clk 0:01:51.9]} 22. Nxg7+
{[%clk 0:01:25.9]} 22... Kd8 {[%clk 0:01:45.9]} 23. Ne6+ {[%clk 0:01:23.9]}
23... Kc8 {[%clk 0:01:46.1]} 24. Nxc7 {[%clk 0:01:21.5]} 24... Kxc7 {[%clk
0:01:37.4]} 25. Qe6 {[%clk 0:01:20.1]} 25... Bh6+ {[%clk 0:00:28.2]} 26. Kb1
{[%clk 0:01:18.2]} 26... Nc8 {[%clk 0:00:28.9]} 27. Bxf6 {[%clk 0:01:13]} 27...
Nxf6 {[%clk 0:00:02.5]} 28. Qxf6 {[%clk 0:01:13.9]} 28... Rd8 {[%clk 0:00:02.9]}
29. Qxh6 {[%clk 0:01:13.4]} 29... a4 {[%clk 0:00:03.5]} 30. Rd3 {[%clk
0:01:02.8]} 30... Kb8 {[%clk 0:00:03.6]} 31. f6 {[%clk 0:01:02.2]} 31... Qc7
{[%clk 0:00:02]} 32. Qf4 {[%clk 0:00:57.2]} 32... Rf8 {[%clk 0:00:01.2]} 33. g5
{[%clk 0:00:57]} 33... Na7 {[%clk 0:00:01]} 34. Re7 {[%clk 0:00:54.2]} 1-0

[Event "*** Titled Tuesday Blitz"]
[Site "Chess.com"]
[Date "2020.10.20"]
[Round "3"]
[White "TST2014"]
[Black "Kolle05"]
[Result "1-0"]
[WhiteElo "2513"]
[BlackElo "2301"]
[TimeControl "180+1"]
[EndTime "10:28:21 PDT"]
[Termination "TST2014 won by resignation"]

1. d4 {[%clk 0:03:00.9]} 1... Nf6 {[%clk 0:02:57.6]} 2. c4 {[%clk 0:03:00.1]}
2... e6 {[%clk 0:02:57.5]} 3. Nf3 {[%clk 0:02:59.4]} 3... Bb4+ {[%clk
0:02:57.8]} 4. Bd2 {[%clk 0:02:58.8]} 4... Be7 {[%clk 0:02:58.4]} 5. Nc3 {[%clk
0:02:56.4]} 5... O-O {[%clk 0:02:58.1]} 6. e4 {[%clk 0:02:56.2]} 6... d5 {[%clk
0:02:58]} 7. e5 {[%clk 0:02:55]} 7... Ne4 {[%clk 0:02:58.5]} 8. Bd3 {[%clk
0:02:50.2]} 8... Nxd2 {[%clk 0:02:58.2]} 9. Qxd2 {[%clk 0:02:49.8]} 9... dxc4
{[%clk 0:02:58.5]} 10. Bxc4 {[%clk 0:02:49.7]} 10... c5 {[%clk 0:02:59]} 11. d5
{[%clk 0:02:48.8]} 11... exd5 {[%clk 0:02:58.9]} 12. Nxd5 {[%clk 0:02:48.5]}
12... Be6 {[%clk 0:02:48.4]} 13. Rd1 {[%clk 0:02:43.1]} 13... Bxd5 {[%clk
0:02:45.4]} 14. Bxd5 {[%clk 0:02:42.3]} 14... Qb6 {[%clk 0:02:39]} 15. O-O
{[%clk 0:02:23.5]} 15... Nc6 {[%clk 0:02:38.1]} 16. Bxc6 {[%clk 0:02:16.6]}
16... Qxc6 {[%clk 0:02:39]} 17. Qd7 {[%clk 0:02:16.9]} 17... Rfe8 {[%clk
0:02:25.6]} 18. Qxc6 {[%clk 0:02:13.8]} 18... bxc6 {[%clk 0:02:26.5]} 19. Rd7
{[%clk 0:02:11.1]} 19... Rab8 {[%clk 0:02:20.9]} 20. b3 {[%clk 0:02:08.6]} 20...
a5 {[%clk 0:02:15.9]} 21. Ra7 {[%clk 0:02:06.2]} 21... Rb5 {[%clk 0:02:06]} 22.
Rd1 {[%clk 0:02:02.2]} 22... g6 {[%clk 0:02:03.8]} 23. h4 {[%clk 0:01:59.3]}
23... c4 {[%clk 0:01:41.8]} 24. bxc4 {[%clk 0:01:57.9]} 24... Rc5 {[%clk
0:01:41.4]} 25. Rdd7 {[%clk 0:01:57.9]} 25... Kf8 {[%clk 0:01:38]} 26. Rd4
{[%clk 0:01:38.8]} 26... Rb8 {[%clk 0:01:32.1]} 27. g3 {[%clk 0:01:35.1]} 27...
h6 {[%clk 0:01:19.6]} 28. a4 {[%clk 0:01:32.2]} 28... Rd8 {[%clk 0:01:18.8]} 29.
Rf4 {[%clk 0:01:24.3]} 29... Ke8 {[%clk 0:00:57]} 30. Rb7 {[%clk 0:01:23.3]}
30... Rd3 {[%clk 0:00:51.7]} 31. Kg2 {[%clk 0:01:22.1]} 31... g5 {[%clk
0:00:51.4]} 32. hxg5 {[%clk 0:01:15.2]} 32... hxg5 {[%clk 0:00:52.3]} 33. Rg4
{[%clk 0:01:13.9]} 33... Ra3 {[%clk 0:00:51.6]} 34. Rd4 {[%clk 0:01:09.9]} 34...
f5 {[%clk 0:00:25]} 35. e6 {[%clk 0:01:03.7]} 35... Bf6 {[%clk 0:00:12.8]} 36.
Rdd7 {[%clk 0:00:59.7]} 36... Bd8 {[%clk 0:00:04.6]} 37. Rb8 {[%clk 0:00:58.5]}
1-0

[Event "*** Titled Tuesday Blitz"]
[Site "Chess.com"]
[Date "2020.10.20"]
[Round "3"]
[White "sjam6687"]
[Black "aloe_normansen"]
[Result "1-0"]
[WhiteElo "2638"]
[BlackElo "2335"]
[TimeControl "180+1"]
[EndTime "10:28:22 PDT"]
[Termination "sjam6687 won on time"]

1. d4 {[%clk 0:03:00.9]} 1... Nf6 {[%clk 0:02:59.7]} 2. c4 {[%clk 0:03:00.1]}
2... g6 {[%clk 0:03:00.1]} 3. Nc3 {[%clk 0:02:59.5]} 3... Bg7 {[%clk 0:03:00.3]}
4. e4 {[%clk 0:02:57.5]} 4... d6 {[%clk 0:03:00.5]} 5. h3 {[%clk 0:02:53]} 5...
O-O {[%clk 0:02:56.7]} 6. Nf3 {[%clk 0:02:53.1]} 6... c5 {[%clk 0:02:39.5]} 7.
d5 {[%clk 0:02:49.8]} 7... e6 {[%clk 0:02:35.7]} 8. Bd3 {[%clk 0:02:46.7]} 8...
exd5 {[%clk 0:02:30.2]} 9. cxd5 {[%clk 0:02:45.9]} 9... b5 {[%clk 0:02:23.1]}
10. Nxb5 {[%clk 0:02:40.7]} 10... Nxe4 {[%clk 0:01:41.7]} 11. O-O {[%clk
0:02:31.3]} 11... Nf6 {[%clk 0:01:31]} 12. Bf4 {[%clk 0:02:28.9]} 12... a6
{[%clk 0:01:01.6]} 13. Nxd6 {[%clk 0:02:24.9]} 13... Nxd5 {[%clk 0:00:51.2]} 14.
Bh2 {[%clk 0:02:23.1]} 14... Nf6 {[%clk 0:00:40.4]} 15. Qc2 {[%clk 0:02:15.9]}
15... Nbd7 {[%clk 0:00:34.9]} 16. Rfe1 {[%clk 0:02:09.8]} 16... Ne8 {[%clk
0:00:29.6]} 17. Nxe8 {[%clk 0:02:05.6]} 17... Rxe8 {[%clk 0:00:30.5]} 18. Rxe8+
{[%clk 0:02:06.1]} 18... Qxe8 {[%clk 0:00:31.4]} 19. Re1 {[%clk 0:02:06.6]}
19... Qd8 {[%clk 0:00:31.4]} 20. Bc4 {[%clk 0:02:00.6]} 20... Nf8 {[%clk
0:00:24.7]} 21. Ne5 {[%clk 0:01:57.2]} 21... Be6 {[%clk 0:00:22.7]} 22. Qb3
{[%clk 0:01:50.8]} 22... Bxc4 {[%clk 0:00:21.8]} 23. Qxc4 {[%clk 0:01:48.8]}
23... Qe7 {[%clk 0:00:17.7]} 24. Nd3 {[%clk 0:01:45.8]} 24... Qd7 {[%clk
0:00:15.8]} 25. Be5 {[%clk 0:01:43.8]} 25... Bxe5 {[%clk 0:00:14.5]} 26. Nxe5
{[%clk 0:01:43.4]} 26... Qe6 {[%clk 0:00:15.2]} 27. Qxc5 {[%clk 0:01:41.1]}
27... Nd7 {[%clk 0:00:15.4]} 28. Qd4 {[%clk 0:01:37.4]} 28... Re8 {[%clk
0:00:14.9]} 29. Nd3 {[%clk 0:01:35.2]} 29... Qxe1+ {[%clk 0:00:11.9]} 30. Nxe1
{[%clk 0:01:34.9]} 30... Rxe1+ {[%clk 0:00:12.8]} 31. Kh2 {[%clk 0:01:35.8]}
31... Ne5 {[%clk 0:00:13.7]} 32. Qd6 {[%clk 0:01:31.6]} 32... h5 {[%clk
0:00:11.8]} 33. Qxa6 {[%clk 0:01:29.9]} 33... h4 {[%clk 0:00:11.6]} 34. b4
{[%clk 0:01:28.3]} 34... Rc1 {[%clk 0:00:08.5]} 35. Qd6 {[%clk 0:01:26.2]} 35...
Nc4 {[%clk 0:00:07.2]} 36. Qd8+ {[%clk 0:01:25.4]} 36... Kg7 {[%clk 0:00:06.5]}
37. a4 {[%clk 0:01:25.4]} 37... Ne5 {[%clk 0:00:02.6]} 38. b5 {[%clk 0:01:23.1]}
38... Rc3 {[%clk 0:00:01.5]} 39. b6 {[%clk 0:01:20.3]} 39... Rc4 {[%clk
0:00:01.6]} 40. Qd5 {[%clk 0:01:18.1]} 1-0

[Event "*** Titled Tuesday Blitz"]
[Site "Chess.com"]
[Date "2020.10.20"]
[Round "3"]
[White "TokChess"]
[Black "MisiekZielony"]
[Result "0-1"]
[WhiteElo "2415"]
[BlackElo "2271"]
[TimeControl "180+1"]
[EndTime "10:28:22 PDT"]
[Termination "MisiekZielony won by resignation"]

1. Nf3 {[%clk 0:03:00.9]} 1... Nf6 {[%clk 0:02:58.4]} 2. g3 {[%clk 0:02:59.8]}
2... g6 {[%clk 0:02:58.3]} 3. Bg2 {[%clk 0:03:00]} 3... d5 {[%clk 0:02:58.7]} 4.
O-O {[%clk 0:03:00.5]} 4... Bg7 {[%clk 0:02:58.7]} 5. d4 {[%clk 0:03:01]} 5...
O-O {[%clk 0:02:58.5]} 6. Nbd2 {[%clk 0:03:01.3]} 6... Ne4 {[%clk 0:02:58.2]} 7.
c4 {[%clk 0:02:57.9]} 7... c6 {[%clk 0:02:58]} 8. b3 {[%clk 0:02:58.4]} 8... Bf5
{[%clk 0:02:56.7]} 9. Bb2 {[%clk 0:02:57.3]} 9... a5 {[%clk 0:02:54.4]} 10. Nh4
{[%clk 0:02:57.5]} 10... Nxd2 {[%clk 0:02:54]} 11. Qxd2 {[%clk 0:02:57.6]} 11...
Be6 {[%clk 0:02:52.8]} 12. e4 {[%clk 0:02:55.4]} 12... dxc4 {[%clk 0:02:22.9]}
13. d5 {[%clk 0:02:55.1]} 13... Bxb2 {[%clk 0:02:15.8]} 14. Qxb2 {[%clk
0:02:55.7]} 14... cxd5 {[%clk 0:02:04.4]} 15. exd5 {[%clk 0:02:55.5]} 15... c3
{[%clk 0:01:45.3]} 16. Qxc3 {[%clk 0:02:49.1]} 16... Bxd5 {[%clk 0:01:45.3]} 17.
Rfd1 {[%clk 0:02:41.9]} 17... e6 {[%clk 0:01:44.8]} 18. Bxd5 {[%clk 0:02:25.6]}
18... exd5 {[%clk 0:01:44.5]} 19. Qc5 {[%clk 0:02:18.6]} 19... Nc6 {[%clk
0:00:46.1]} 20. Rxd5 {[%clk 0:02:17.4]} 20... Qf6 {[%clk 0:00:41.6]} 21. Rad1
{[%clk 0:02:17.1]} 21... Rfe8 {[%clk 0:00:26.4]} 22. Rd6 {[%clk 0:02:08.4]}
22... Qb2 {[%clk 0:00:19.9]} 23. Nf3 {[%clk 0:01:30.1]} 23... Qxa2 {[%clk
0:00:16.5]} 24. Qd5 {[%clk 0:01:22.7]} 24... Qb2 {[%clk 0:00:07.2]} 25. Rd7
{[%clk 0:01:21]} 25... Re7 {[%clk 0:00:06.3]} 26. Rxe7 {[%clk 0:01:18.6]} 26...
Nxe7 {[%clk 0:00:06.2]} 27. Qxb7 {[%clk 0:01:19.2]} 27... Re8 {[%clk 0:00:06.3]}
28. Rd7 {[%clk 0:01:16.6]} 28... Kf8 {[%clk 0:00:06.2]} 29. Ng5 {[%clk
0:01:13.8]} 29... Qc1+ {[%clk 0:00:06.3]} 30. Kg2 {[%clk 0:01:12.4]} 30... Qxg5
{[%clk 0:00:06.9]} 31. Qa7 {[%clk 0:01:04.7]} 31... Qf5 {[%clk 0:00:06.5]} 32.
Rd4 {[%clk 0:01:02]} 32... Qb5 {[%clk 0:00:05.1]} 33. Rf4 {[%clk 0:00:57.1]}
33... Qd5+ {[%clk 0:00:04.2]} 34. Kg1 {[%clk 0:00:56.8]} 34... Nf5 {[%clk
0:00:04.5]} 0-1

[Event "*** Titled Tuesday Blitz"]
[Site "Chess.com"]
[Date "2020.10.20"]
[Round "3"]
[White "pfalcon1949"]
[Black "Kaslask"]
[Result "0-1"]
[WhiteElo "1986"]
[BlackElo "2302"]
[TimeControl "180+1"]
[EndTime "10:28:22 PDT"]
[Termination "Kaslask won on time"]

1. c4 {[%clk 0:03:00.9]} 1... Nf6 {[%clk 0:02:59.1]} 2. Nc3 {[%clk 0:03:00.5]}
2... g6 {[%clk 0:02:59.2]} 3. g3 {[%clk 0:03:00.9]} 3... d5 {[%clk 0:02:55.2]}
4. cxd5 {[%clk 0:02:59.9]} 4... Nxd5 {[%clk 0:02:54.1]} 5. Bg2 {[%clk
0:02:59.6]} 5... Nb6 {[%clk 0:02:53.8]} 6. Nf3 {[%clk 0:02:46]} 6... Bg7 {[%clk
0:02:53.4]} 7. O-O {[%clk 0:02:45.5]} 7... Nc6 {[%clk 0:02:50.3]} 8. d3 {[%clk
0:02:45.5]} 8... e5 {[%clk 0:02:48.5]} 9. Be3 {[%clk 0:02:45]} 9... Nd4 {[%clk
0:02:45.2]} 10. Rc1 {[%clk 0:02:37.7]} 10... c6 {[%clk 0:02:44.7]} 11. Ne4
{[%clk 0:02:33.7]} 11... O-O {[%clk 0:02:28.4]} 12. Nc5 {[%clk 0:02:32.5]} 12...
Nd5 {[%clk 0:02:23.3]} 13. Bxd4 {[%clk 0:02:28.1]} 13... exd4 {[%clk 0:02:22.3]}
14. Nd2 {[%clk 0:02:27]} 14... b6 {[%clk 0:02:18.2]} 15. Ncb3 {[%clk 0:02:20.6]}
15... Bb7 {[%clk 0:02:09.7]} 16. a3 {[%clk 0:02:01.9]} 16... Re8 {[%clk
0:02:08]} 17. Re1 {[%clk 0:02:01.2]} 17... Qd7 {[%clk 0:02:05.7]} 18. Qc2 {[%clk
0:01:56.8]} 18... Rac8 {[%clk 0:02:02]} 19. Qc4 {[%clk 0:01:56.1]} 19... c5
{[%clk 0:01:58.4]} 20. Ne4 {[%clk 0:01:44.8]} 20... f5 {[%clk 0:01:49.7]} 21.
Ng5 {[%clk 0:01:39.4]} 21... h6 {[%clk 0:01:48]} 22. Nf3 {[%clk 0:01:37.9]}
22... Kh7 {[%clk 0:01:47]} 23. Nbd2 {[%clk 0:01:03.7]} 23... Nf6 {[%clk
0:01:45.3]} 24. b4 {[%clk 0:00:56.6]} 24... Nd5 {[%clk 0:01:33.6]} 25. bxc5
{[%clk 0:00:55.7]} 25... Rxc5 {[%clk 0:01:25.8]} 26. Qb3 {[%clk 0:00:43.3]}
26... Rxc1 {[%clk 0:01:24.1]} 27. Rxc1 {[%clk 0:00:39.7]} 27... Nc3 {[%clk
0:01:23.2]} 28. e4 {[%clk 0:00:32.4]} 28... Ne2+ {[%clk 0:01:14.8]} 29. Kf1
{[%clk 0:00:23.2]} 29... Nxc1 {[%clk 0:01:14.1]} 30. Qc4 {[%clk 0:00:22.8]}
30... Nxd3 {[%clk 0:01:12.9]} 31. Qxd3 {[%clk 0:00:21.5]} 31... fxe4 {[%clk
0:01:12.7]} 32. Nxe4 {[%clk 0:00:14.9]} 32... Bxe4 {[%clk 0:01:11.1]} 33. Ng5+
{[%clk 0:00:15]} 33... hxg5 {[%clk 0:01:08.8]} 34. Bxe4 {[%clk 0:00:15.9]} 34...
Qe6 {[%clk 0:01:07.7]} 35. f3 {[%clk 0:00:14.9]} 35... Rc8 {[%clk 0:01:04.3]}
36. Kg2 {[%clk 0:00:10.6]} 36... Rc3 {[%clk 0:01:03.4]} 37. Qa6 {[%clk
0:00:10.6]} 37... g4 {[%clk 0:00:59.3]} 38. Qxa7 {[%clk 0:00:03.6]} 38... gxf3+
{[%clk 0:00:57.9]} 39. Bxf3 {[%clk 0:00:03.9]} 39... Rxf3 {[%clk 0:00:55.3]} 40.
Kxf3 {[%clk 0:00:02.9]} 40... Qe3+ {[%clk 0:00:55]} 41. Kg2 {[%clk 0:00:03.4]}
41... d3 {[%clk 0:00:54.7]} 0-1

[Event "*** Titled Tuesday Blitz"]
[Site "Chess.com"]
[Date "2020.10.20"]
[Round "3"]
[White "Bigfish1995"]
[Black "slavenok"]
[Result "0-1"]
[WhiteElo "3037"]
[BlackElo "2744"]
[TimeControl "180+1"]
[EndTime "10:28:24 PDT"]
[Termination "slavenok won on time"]

1. c4 {[%clk 0:02:47.3]} 1... c5 {[%clk 0:02:59.7]} 2. b3 {[%clk 0:02:46.6]}
2... Nc6 {[%clk 0:03:00.2]} 3. Bb2 {[%clk 0:02:46.9]} 3... e6 {[%clk 0:03:00.8]}
4. g3 {[%clk 0:02:46.4]} 4... d5 {[%clk 0:03:01]} 5. Bg2 {[%clk 0:02:46.3]} 5...
d4 {[%clk 0:03:00.3]} 6. e3 {[%clk 0:02:42.3]} 6... e5 {[%clk 0:03:00.2]} 7. f4
{[%clk 0:02:41.1]} 7... exf4 {[%clk 0:02:57.2]} 8. exd4 {[%clk 0:02:26.1]} 8...
Nxd4 {[%clk 0:02:53.5]} 9. Bxd4 {[%clk 0:02:21.1]} 9... cxd4 {[%clk 0:02:43]}
10. Nf3 {[%clk 0:02:14.9]} 10... fxg3 {[%clk 0:02:35.2]} 11. O-O {[%clk
0:02:15.1]} 11... gxh2+ {[%clk 0:02:34.4]} 12. Kh1 {[%clk 0:02:14.9]} 12... Nf6
{[%clk 0:02:33.3]} 13. Qe1+ {[%clk 0:02:00.6]} 13... Be7 {[%clk 0:02:27.4]} 14.
Qe5 {[%clk 0:01:54.4]} 14... O-O {[%clk 0:02:20.6]} 15. Re1 {[%clk 0:01:12.6]}
15... Be6 {[%clk 0:02:16.7]} 16. Nxd4 {[%clk 0:01:08.6]} 16... Bd6 {[%clk
0:02:15.7]} 17. Qe3 {[%clk 0:00:39.8]} 17... Re8 {[%clk 0:02:11.6]} 18. Nc3
{[%clk 0:00:33.9]} 18... Bd7 {[%clk 0:02:06]} 19. Qf3 {[%clk 0:00:29.7]} 19...
Be5 {[%clk 0:01:57.3]} 20. Qxb7 {[%clk 0:00:20.6]} 20... Rb8 {[%clk 0:01:45]}
21. Qxa7 {[%clk 0:00:18.7]} 21... Nh5 {[%clk 0:01:41.1]} 22. Nde2 {[%clk
0:00:11.3]} 22... Bg4 {[%clk 0:01:33.1]} 23. Rad1 {[%clk 0:00:08]} 23... Qh4
{[%clk 0:01:30.2]} 24. Rf1 {[%clk 0:00:06.9]} 24... Bf6 {[%clk 0:01:19.8]} 25.
Qf2 {[%clk 0:00:06.7]} 25... Bxe2 {[%clk 0:01:15.8]} 26. Qxh4 {[%clk 0:00:05.9]}
26... Bxh4 {[%clk 0:01:12.2]} 27. Nxe2 {[%clk 0:00:05.4]} 27... Rxe2 {[%clk
0:01:13.1]} 28. Kxh2 {[%clk 0:00:06.3]} 28... Bg3+ {[%clk 0:01:07.4]} 29. Kh3
{[%clk 0:00:06.5]} 29... Bc7 {[%clk 0:00:57.7]} 30. Bf3 {[%clk 0:00:06.8]} 30...
Nf4+ {[%clk 0:00:56.1]} 31. Kg4 {[%clk 0:00:07.7]} 31... Re6 {[%clk 0:00:55.1]}
32. d4 {[%clk 0:00:05.6]} 32... Rg6+ {[%clk 0:00:54.7]} 33. Kf5 {[%clk
0:00:04.9]} 33... Nh3 {[%clk 0:00:48.6]} 34. Bd5 {[%clk 0:00:03.8]} 34... Re8
{[%clk 0:00:46.7]} 0-1